[Event "1st Sales Oliveira Masters 2022"]
[Site "Sales Oliveira"]
[Date "2022.06.10"]
[Round "5.1"]
[White "Lima, Darcy"]
[Black "Fier, Alexandr"]
[Result "1/2-1/2"]
[ECO "E97"]
[WhiteElo "2488"]
[BlackElo "2567"]
[Annotator "TA"]
[PlyCount "56"]
[EventDate "2022.05.30"]
[EventType "swiss"]
[EventCountry "BRA"]
[SourceTitle "playchess.com"]
[Source "ChessBase"]
[SourceQuality "1"]
[TimeControl "40/5400+30:1800+30"]

{[%evp 16,56,16,16,18,18,14,18,21,21,22,24,16,22,24,0,0,0,9,10,14,9,17,14,31,18,19,0,6,6,10,9,9,9,10,10,10,10,12,12,12,12,15]} 1. c4 {[%emt 0:00:15]} Nf6 {[%emt 0:00:07]} 2. Nf3 {[%emt 0:00:33]} g6 {[%emt 0:00:05]} 3. d4 {[%emt 0:03:27]} Bg7 {[%emt 0:00:05]} 4. Nc3 {[%emt 0:01:55]} O-O {[%emt 0:00:07]} 5. e4 {[%emt 0:00:06]} d6 {[%emt 0:00:03]} 6. Be2 {[%emt 0:00:15]} e5 {[%emt 0:00:05]} 7. O-O {[%emt 0:00:10]} Nc6 {[%emt 0:00:03]} 8. dxe5 {[%emt 0:01:56]} dxe5 {[%emt 0:00:13]} 9. Bg5 {[%emt 0:00:08]} Bg4 {[%emt 0:00:59] E97: King's Indian: Classical Main Line (6...e5 7 0-0 Nc6): 8 Be3 and 8 d5 Ne7, not 9 Ne1.} 10. Qxd8 {[%emt 0:02:40]} Nxd8 {[%emt 0:01:00]} 11. Bxf6 {[%emt 0:00:14][%cal Of3e5]} ({Much weaker is} 11. Nxe5 Bxe2 12. Nxe2 Nxe4 $17) 11... Bxf6 {[%emt 0:00:04]} 12. Nd5 {[%emt 0:00:05][%csl LRc7,LRf6]} Kg7 {[%emt 0:00:04]} 13. Nxc7 {[%emt 0:00:08] Pair of Knights!} ({Don't play} 13. Nxf6 Kxf6 14. Rae1 Bxf3 15. Bxf3 Nc6 $15) 13... Rc8 {[%emt 0:00:03]} 14. Nd5 {[%emt 0:02:21]} Bxf3 {[%emt 0:00:29]} 15. Bxf3 {[%emt 0:08:55]} Rxc4 {[%emt 0:00:20]} 16. Rfc1 {[%emt 0:02:30]} Rxc1+ {[%emt 0:02:32]} 17. Rxc1 {[%emt 0:00:05]} Nc6 {[%emt 0:00:03] [#]} 18. Kf1 $146 {[%emt 0:13:07]} ({Predecessor:} 18. Bd1 Rc8 19. g3 Ne7 20. Rxc8 Nxc8 21. Kf1 Nd6 22. Bc2 Bg5 23. f4 Bf6 24. b4 {½-½ (31) Li,C (2691)-Rapport,R (2735) China 2019}) 18... Bd8 {[%emt 0:05:06]} 19. Bd1 {[%emt 0:10:11]} f5 {[%emt 0:02:12]} 20. Ba4 {[%emt 0:00:05]} Nd4 {[%emt 0:00:16] The position is equal.} 21. Rc8 {[%emt 0:00:46]} fxe4 {[%emt 0:03:30]} 22. Bc2 {[%emt 0:03:00]} Nf5 {[%emt 0:02:28]} 23. Rb8 {[%emt 0:07:55]} Nd6 {[%emt 0:00:05]} 24. Ke2 {[%emt 0:00:47]} Bg5 {[%emt 0:05:25]} 25. Rxf8 {[%emt 0:00:37]} Kxf8 {[%emt 0:00:04]} 26. Nc3 {[%emt 0:00:14]} e3 {[%emt 0:00:25]} 27. fxe3 {[%emt 0:00:17]} Nc4 {[%emt 0:00:27][%csl LRb2,LRe3]} 28. Nd1 {[%emt 0:00:37]} Ke7 {[%emt 0:00:17] A balanced but interesting game.  Weighted Error Value: White=0.02 (flawless) /Black=0.03 (flawless)} 1/2-1/2

[Event "1st Sales Oliveira Masters 2022"]
[Site "Sales Oliveira"]
[Date "2022.06.10"]
[Round "5.2"]
[White "Rodi, Luis Ernesto"]
[Black "Born, Carlos Rodrigo"]
[Result "1-0"]
[ECO "B23"]
[WhiteElo "2351"]
[BlackElo "2292"]
[Annotator "TA"]
[PlyCount "135"]
[EventDate "2022.05.30"]
[EventType "swiss"]
[EventCountry "BRA"]
[SourceTitle "playchess.com"]
[Source "ChessBase"]
[SourceQuality "1"]
[TimeControl "40/5400+30:1800+30"]

{[%evp 9,135,0,0,0,7,0,33,37,37,35,62,75,69,73,67,47,79,0,0,0,0,0,0,0,0,0,0,0,0,-29,-25,-39,31,25,33,42,39,21,29,28,52,48,135,135,135,6,9,9,6,0,0,0,18,15,14,0,32,32,36,38,37,41,37,43,43,43,42,9,87,87,87,87,87,87,87,87,91,80,81,81,90,80,106,102,122,94,81,0,119,116,132,121,123,127,158,147,169,162,166,164,235,235,334,215,330,330,314,306,272,249,261,-160,-160,-153,29968,29970,29976,29978,29969,29965,29979,29980,29980,29981,29981,29982,29983,29981]} 1. e4 {[%emt 0:00:03]} c5 {[%emt 0:00:03]} 2. Nc3 {[%emt 0:00:07]} d6 {[%emt 0:00:08]} 3. d4 {[%emt 0:00:05]} cxd4 {[%emt 0:00:08]} 4. Qxd4 {[%emt 0:00:05]} Nc6 {[%emt 0:01:05]} 5. Qd2 {[%emt 0:00:07]} Nf6 {[%emt 0:00:23]} 6. b3 {[%emt 0:00:07] B23: Closed Sicilian: Lines without g3.} a6 {[%emt 0:04:53]} 7. Bb2 {[%emt 0:00:07]} e5 {[%emt 0:06:43]} 8. O-O-O {[%emt 0:00:49] White is slightly better.} Be7 {[%emt 0:05:40] [#]} 9. f3 $146 {[%emt 0:00:10]} ({Predecessor:} 9. Kb1 O-O 10. f3 Be6 11. g4 Nd4 12. Nce2 Nxe2 13. Nxe2 Qb6 14. Ng3 Rfd8 15. g5 {½-½ (30) Poetz,F (2425)-Martinez Alcantara,J (2617) Graz 2020}) 9... h5 {[%emt 0:00:07]} 10. Kb1 {[%emt 0:00:09]} Qa5 {[%emt 0:02:07]} 11. g3 {[%emt 0:03:51]} Be6 {[%emt 0:04:40]} 12. Nh3 {[%emt 0:02:06]} O-O-O {[%emt 0:16:50]} 13. Ng5 {[%emt 0:10:37]} (13. Nd5 $16 Qxd2 14. Rxd2) 13... d5 $11 {[%emt 0:04:49]} 14. Nxe6 {[%emt 0:06:19]} fxe6 {[%emt 0:01:31]} 15. exd5 {[%emt 0:12:01]} exd5 {[%emt 0:02:59]} 16. Ne2 {[%emt 0:01:00]} Qc7 {[%emt 0:02:08]} 17. Bh3+ {[%emt 0:00:50]} Kb8 {[%emt 0:00:02][%cal Og7g5]} 18. Bf5 {[%emt 0:00:12]} d4 {[%emt 0:00:54]} 19. f4 {[%emt 0:01:49]} Nd5 {[%emt 0:01:01]} 20. Be4 {[%emt 0:02:15]} Bf6 {[%emt 0:23:35]} (20... Ne3 $15) 21. fxe5 $14 {[%emt 0:02:18]} Bxe5 {[%emt 0:03:07]} 22. Bxd5 {[%emt 0:00:45]} ({Don't go for} 22. Bxd4 $2 Nxd4 23. Bxd5 Nxe2 24. Qxe2 Qc3 25. Qxe5+ Qxe5 $19) 22... Rxd5 {[%emt 0:00:02]} 23. Rhf1 {[%emt 0:00:44]} h4 {[%emt 0:06:18]} 24. Nf4 {[%emt 0:01:10]} Rd6 {[%emt 0:01:05]} 25. Ba3 {[%emt 0:02:19]} Rf6 {[%emt 0:00:26]} (25... Rdh6 $14) 26. Nd5 $1 $16 {[%emt 0:01:01][%csl LRc7,LRf6]} Rxf1 {[%emt 0:00:02]} 27. Rxf1 {[%emt 0:10:16]} (27. Nxc7 $16 Rxd1+ 28. Qxd1 Kxc7 29. Qf3) 27... Qd8 {[%emt 0:01:48]} 28. Nf4 {[%emt 0:00:16]} Qg5 {[%emt 0:01:52] Inhibits Ng6.} 29. Qe1 {[%emt 0:02:25]} hxg3 {[%emt 0:00:41]} 30. hxg3 {[%emt 0:00:07]} Qg4 {[%emt 0:01:05]} 31. Rg1 {[%emt 0:08:13]} Bc7 {[%emt 0:01:52]} 32. Nd5 {[%emt 0:01:11]} Be5 {[%emt 0:00:19][%cal Od4d3]} 33. Ne7 {[%emt 0:00:20] Strongly threatening Nxc6+.} Bc7 {[%emt 0:01:33]} 34. Nxc6+ {[%emt 0:00:24]} bxc6 {[%emt 0:00:01]} 35. Qb4+ {[%emt 0:00:55]} Kc8 {[%emt 0:00:06]} 36. Qc4 {[%emt 0:00:12][%csl LRa6,LRc6]} Kb7 {[%emt 0:00:30]} 37. Bc5 $36 {[%emt 0:01:54][%mdl 2048] White fights for an advantage.} Rd8 {[%emt 0:00:38]} 38. a4 {[%emt 0:00:22]} Qg6 {[%emt 0:01:09]} (38... a5 $11) 39. Bxd4 {[%emt 0:08:47] Threatens to win with Qc5.} Qe4 {[%emt 0:01:43]} 40. Qb4+ {[%emt 0:00:18]} Kc8 {[%emt 0:00:03]} 41. Bc5 {[%emt 0:30:19]} Qxb4 {[%emt 0:30:50]} 42. Bxb4 {[%emt 0:00:03][%mdl 4096] Endgame KRB-KRB} Rd4 {[%emt 0:00:28]} 43. Bc3 {[%emt 0:00:10]} Rg4 {[%emt 0:00:04]} 44. Be1 {[%emt 0:00:07]} Re4 {[%emt 0:01:21]} 45. Kc1 {[%emt 0:00:46]} Kd7 {[%emt 0:00:30]} 46. Kd1 {[%emt 0:00:39]} Be5 {[%emt 0:00:34]} 47. Bf2 {[%emt 0:00:30]} Bc3 {[%emt 0:00:15]} 48. Be1 {[%emt 0:01:08]} Be5 {[%emt 0:01:03]} 49. Rf1 {[%emt 0:00:30]} Bf6 {[%emt 0:00:44]} 50. Rf3 {[%emt 0:00:12]} c5 {[%emt 0:00:21]} 51. Bc3 {[%emt 0:00:30]} Bxc3 {[%emt 0:00:27]} 52. Rxc3 {[%emt 0:00:02] KR-KR} Kc6 {[%emt 0:00:32]} 53. Kd2 {[%emt 0:00:29]} Rg4 {[%emt 0:00:17]} 54. Ke2 {[%emt 0:00:22]} a5 {[%emt 0:00:27]} (54... Kd5 {is a better defense.} 55. Rd3+ Ke4) 55. Kf3 $18 {[%emt 0:00:12]} Rg6 {[%emt 0:00:05]} (55... Rd4 $142 56. Re3 c4) 56. Rc4 {[%emt 0:00:30]} Kd5 {[%emt 0:00:56]} (56... Rd6 $142 57. Rg4 Rd2) 57. Kf4 {[%emt 0:00:15]} Rf6+ {[%emt 0:01:22]} 58. Kg5 {[%emt 0:00:12]} Rf3 {[%emt 0:00:57]} 59. g4 {[%emt 0:00:14][%cal Bg3g4,Bg4g5][%mdl 32] Black must now prevent Kg6.} Rf6 {[%emt 0:00:03]} 60. Rf4 $2 {[%emt 0:02:21] [#]} (60. Rc3 $18) 60... Rxf4 $1 $17 {[%emt 0:01:33]} 61. Kxf4 {[%emt 0:00:07] White threatens Kf5 and mate. KP-KP} c4 $2 {[%emt 0:00:01] A mistake that costs the game.} (61... Kd4 $17 62. c4 Kc3) 62. Kf5 {[%emt 0:02:20] White mates.} Kd4 {[%emt 0:00:45]} 63. g5 {[%emt 0:04:13]} c3 {[%emt 0:03:42] [#]} 64. Kf4 $1 {[%emt 0:00:16]} ({Not} 64. Kg6 Ke3 $11) 64... g6 {[%emt 0:00:01]} 65. Kf3 {[%emt 0:00:07]} Ke5 {[%emt 0:00:45]} 66. Ke3 {[%emt 0:00:09]} Kf5 {[%emt 0:00:01]} 67. Kd3 {[%emt 0:00:09]} Kxg5 {[%emt 0:00:01]} 68. b4 {[%emt 0:00:13] Weighted Error Value: White=0.25 (precise) /Black=0.17 (very precise)} 1-0

[Event "1st Sales Oliveira Masters 2022"]
[Site "Sales Oliveira"]
[Date "2022.06.10"]
[Round "5.3"]
[White "Diamant, Andre"]
[Black "Gemy, Jose Daniel"]
[Result "1-0"]
[ECO "B14"]
[WhiteElo "2539"]
[BlackElo "2367"]
[Annotator "TA"]
[PlyCount "63"]
[EventDate "2022.05.30"]
[EventType "swiss"]
[EventCountry "BRA"]
[SourceTitle "playchess.com"]
[Source "ChessBase"]
[SourceQuality "1"]
[TimeControl "40/5400+30:1800+30"]

{[%evp 18,63,14,0,0,0,0,0,12,16,34,5,0,0,27,6,100,108,81,69,121,125,146,120,168,178,172,21,24,30,15,14,3,0,138,0,0,-253,29995,29993,29996,29997,29997,29995,29995,29996,29998,29999]} 1. d4 {[%emt 0:00:04]} Nf6 {[%emt 1:31:00]} 2. c4 {[%emt 0:00:06]} e6 {[%emt 0:00:00]} 3. Nc3 {[%emt 0:00:07]} d5 {[%emt 0:00:00]} 4. Nf3 {[%emt 0:00:54]} Bb4 {[%emt 0:00:00]} 5. e3 {[%emt 0:01:14]} c5 {[%emt 0:00:00]} 6. Bd3 {[%emt 0:01:21]} Nc6 {[%emt 0:00:00]} 7. O-O {[%emt 0:00:28]} dxc4 {[%emt 0:00:00]} 8. Bxc4 {[%emt 0:00:04]} cxd4 {[%emt 0:00:00]} 9. exd4 {[%emt 0:00:06]} O-O {[%emt 0:00:00]} 10. Bg5 {[%emt 0:02:10]} h6 {[%emt 0:00:00] is currently scoring better than 10...Be7. B14: Caro-Kann: Panov-Botvinnik Attack with 5...e6 and 5...g6.} 11. Bh4 {[%emt 0:01:54]} Be7 {[%emt 0:00:00]} 12. Re1 {[%emt 0:01:09]} a6 {[%emt 0:00:00] The position is equal.} 13. a3 {[%emt 0:03:00]} b5 {[%emt 0:06:00]} 14. Ba2 {[%emt 0:06:39]} Bb7 {[%emt 0:00:00]} 15. Qd3 {[%emt 0:01:21]} b4 {[%emt 0:00:00]} 16. Na4 {[%emt 0:05:48] next Bb1 is good for White.} Qa5 {[%emt 0:00:00] [#]} (16... bxa3 $11 17. bxa3 Nb8) 17. Bxf6 $146 {[%emt 0:14:51]} ({Predecessor:} 17. Nc5 Bxc5 18. Bxf6 gxf6 19. dxc5 Qxc5 20. Rxe6 Rad8 21. Qe4 f5 22. Rg6+ Kh7 23. Rxh6+ Kxh6 24. Qh4+ {1-0 (41) Fiebig,T (2402)-Doeres,H (2226) Germany 2013}) 17... Bxf6 {[%emt 0:00:00]} (17... gxf6 $2 18. Bxe6 $1 Qh5 19. Bf5 $18 (19. g4 Qh3 $16)) 18. Nc5 {[%emt 0:02:39] Pair of Knights!} Nxd4 {[%emt 0:00:00]} 19. Nxb7 {[%emt 0:02:22]} Qb6 {[%emt 0:00:00]} 20. Rad1 {[%emt 0:05:19][%cal Rf3d4]} b3 {[%emt 0:00:00] [#]} (20... Qxb7 $16 {keeps fighting.} 21. Nxd4 Rfd8) 21. Bb1 $1 $18 {[%emt 0:02:33][%csl Gb1][%cal Rd3h7]} Nc2 {[%emt 0:00:00] [#]} 22. Qe4 {[%emt 0:01:31]} (22. Nd2 $1 $18) 22... Rfb8 $1 $11 {[%emt 0:00:00] [#]} (22... Bxb2 $2 23. Nd6 $1 Bxa3 24. Nc4 $18) 23. Nd6 {[%emt 0:28:53] Re2 is the strong threat.} Nxe1 {[%emt 0:00:00]} 24. Nxe1 {[%emt 0:03:41] Black must now prevent Qh7+. Really sharp!} Rd8 {[%emt 0:00:00]} 25. Rd2 {[%emt 0:05:06]} Qb8 {[%emt 0:00:00] [#]} (25... Qc7 $11 {keeps the balance.}) 26. Nf3 {[%emt 0:03:01] 0x0.00207e154865dp-1022s more active pieces.} Bxb2 {[%emt 0:00:00] And now ...Bc3 would win.} 27. Nh4 $2 {[%emt 0:06:15][%mdl 8192]} Bf6 $4 {[%emt 0:00:00][%mdl 8192]} (27... Qc7 $19 28. Re2 (28. Qh7+ $2 Kf8 $19) 28... Be5) 28. Qh7+ {[%emt 0:00:25] White mates.} Kf8 {[%emt 0:07:30] [#]} 29. Nhf5 $1 {[%emt 0:00:35][%mdl 576] Back Rank} exf5 {[%emt 0:00:00] [#]} 30. Nxf5 $1 {[%emt 0:00:14][%cal Rh7h8]} g6 {[%emt 0:00:00] [#]} 31. Nxh6 $1 {[%emt 0:00:11][%csl Gh6][%cal Rh7f7]} Bg7 {[%emt 0:00:00]} (31... Qxh2+ 32. Kxh2) 32. Qg8+ {[%emt 0:02:29] Weighted Error Value: White=0.47/Black=0.51} 1-0

[Event "1st Sales Oliveira Masters 2022"]
[Site "Sales Oliveira"]
[Date "2022.06.10"]
[Round "5.4"]
[White "Supi, Luis Paulo"]
[Black "Delgado Ramirez, Neuris"]
[Result "1/2-1/2"]
[ECO "B92"]
[WhiteElo "2590"]
[BlackElo "2603"]
[Annotator "TA"]
[PlyCount "155"]
[EventDate "2022.05.30"]
[EventType "swiss"]
[EventCountry "BRA"]
[SourceTitle "playchess.com"]
[Source "ChessBase"]
[SourceQuality "1"]
[TimeControl "40/5400+30:1800+30"]

{[%evp 22,155,0,0,28,34,30,19,27,28,36,12,20,12,92,99,97,52,74,85,143,125,194,177,183,184,183,174,204,210,216,221,283,298,320,328,298,106,93,100,106,95,108,98,132,102,119,72,68,87,78,57,81,16,54,54,54,40,52,31,36,31,66,67,67,68,67,67,105,67,67,67,67,67,68,31,31,0,4,0,12,0,0,0,26,0,0,0,0,0,0,0,0,0,0,0,0,0,0,0,0,0,0,0,0,0,0,0,0,0,0,0,0,0,0,0,0,0,0,0,0,0,0,0,0,0,0,0,0,0,0,0,0,0,0,0]} 1. e4 {[%emt 0:00:03]} c5 {[%emt 0:00:05]} 2. Nf3 {[%emt 0:00:20]} d6 {[%emt 0:00:04]} 3. d4 {[%emt 0:00:13]} cxd4 {[%emt 0:00:05]} 4. Nxd4 {[%emt 0:00:06]} Nf6 {[%emt 0:00:04]} 5. Nc3 {[%emt 0:00:06]} a6 {[%emt 0:00:02]} 6. Be2 {[%emt 0:01:52]} e5 {[%emt 0:00:11]} 7. Nb3 {[%emt 0:00:02]} Be7 {[%emt 0:00:07]} 8. Be3 {[%emt 0:00:06]} Be6 {[%emt 0:00:24]} 9. Nd5 {[%emt 0:00:20]} Nbd7 {[%emt 0:00:31]} 10. Qd3 {[%emt 0:00:07]} O-O {[%emt 0:00:38]} 11. O-O {[%emt 0:00:05]} Bxd5 {[%emt 0:00:17]} 12. exd5 {[%emt 0:00:03]} h5 {[%emt 0:00:08] 12...Rc8 is becoming the main line. B92: Sicilian Najdorf: 6 Be2.} 13. a4 {[%emt 0:00:08] [#]} Ng4 $146 {[%emt 0:00:38]} ({Predecessor:} 13... g6 14. a5 Rc8 15. c4 Kg7 16. Bc1 Nh7 17. Nd2 f5 18. b4 Ng5 19. Nb3 Kh7 20. Qc2 {1-0 (64) Janisch,M (2447)-Genga,S (2425) ICCF email 2020}) 14. Bc1 {[%emt 0:00:40]} Bg5 {[%emt 0:02:38]} 15. h3 {[%emt 0:00:17]} Bxc1 {[%emt 0:00:07]} 16. Rfxc1 {[%emt 0:00:03]} Ngf6 {[%emt 0:00:39]} 17. a5 {[%emt 0:00:20]} Nc5 {[%emt 0:06:24]} (17... b5 $11) 18. Nxc5 $16 {[%emt 0:00:42]} dxc5 {[%emt 0:00:03]} 19. d6 {[%emt 0:03:41]} e4 {[%emt 0:00:59]} 20. Qg3 {[%emt 0:00:37] White is more active.} Re8 {[%emt 0:05:51]} (20... Qd7 $142) 21. Rd1 $1 {[%emt 0:01:23]} Qd7 {[%emt 0:00:09]} (21... b5 $16 {keeps fighting.}) 22. Ra3 $1 $18 {[%emt 0:13:41]} Qf5 {[%emt 0:01:35]} 23. Rb3 $1 {[%emt 0:03:04]} Rab8 {[%emt 0:00:41]} 24. Bc4 {[%emt 0:07:13]} h4 {[%emt 0:12:44]} 25. Qxh4 {[%emt 0:03:09][%cal Od6d7]} e3 {[%emt 0:00:03]} 26. Bd3 {[%emt 0:04:12]} (26. Rxe3 $6 Rxe3 27. fxe3 Qxc2 $16) (26. fxe3 Qxc2 27. Rf1 Re4 $11) 26... Qe5 {[%emt 0:02:55]} (26... e2 $2 27. Re1 (27. Bxf5 $2 {perishes.} exd1=Q+ 28. Kh2 Re1 $19) 27... Qd5 28. Qf4 (28. Bxe2 $2 Rxe2 29. Rxe2 Qd1+ 30. Kh2 Qxe2 $19) (28. Rxe2 Qxd6 29. Qg3 Qxg3 $16)) 27. fxe3 {[%emt 0:01:56]} Qxe3+ {[%emt 0:01:43]} 28. Kh1 {[%emt 0:00:32]} Qe5 {[%emt 0:01:51]} 29. Rf1 $2 {[%emt 0:06:36]} (29. Bc4 $1 $18 {and the rest is easy.}) 29... Qxd6 $16 {[%emt 0:02:33]} 30. Rb6 {[%emt 0:00:22]} Qd4 {[%emt 0:00:03] [#]} 31. Qxd4 {[%emt 0:00:36]} cxd4 {[%emt 0:00:04]} 32. Rb4 {[%emt 0:01:17]} Red8 {[%emt 0:03:35]} 33. Ra1 {[%emt 0:01:01]} Nh5 {[%emt 0:01:43]} 34. Ra3 {[%emt 0:13:32]} (34. Rd1 $142) 34... Nf4 {[%emt 0:00:40]} 35. Be4 {[%emt 0:01:35]} Ne6 {[%emt 0:00:41]} 36. Bf3 {[%emt 0:11:37]} ({But not} 36. Bxb7 $2 Nc5 37. Rb6 Rxb7 $19) (36. Rb6 $5 {[%cal Re4b7]}) 36... Rd7 {[%emt 0:03:24] [#]} 37. Rc4 {[%emt 0:03:24]} ({White should try} 37. Rb6 $1 $16) 37... Ng5 {[%emt 0:03:44]} 38. Bg4 {[%emt 0:02:39]} Rd5 {[%emt 0:00:13]} 39. Rb4 {[%emt 0:00:24]} Ne4 {[%emt 0:02:25]} 40. Bf3 {[%emt 0:02:08]} f5 {[%emt 0:00:03]} 41. Raa4 {[%emt 0:31:01]} Rc8 {[%emt 0:31:33]} 42. Rxd4 {[%emt 0:04:44]} Rxd4 {[%emt 0:01:16]} 43. Rxd4 {[%emt 0:00:03]} Rxc2 $14 {[%emt 0:00:05][%mdl 4096] Endgame KRB-KRN} 44. b4 {[%emt 0:00:47]} Rc7 {[%emt 0:03:37] Against Rd7} 45. Bxe4 {[%emt 0:03:37]} fxe4 {[%emt 0:00:05]} 46. Rxe4 $16 {[%emt 0:00:03] KR-KR} Kf7 {[%emt 0:00:09] Against Re6} 47. Kg1 {[%emt 0:01:57]} b6 {[%emt 0:00:42]} 48. Re5 {[%emt 0:02:55]} bxa5 {[%emt 0:01:23]} 49. bxa5 {[%emt 0:00:26]} Kf6 {[%emt 0:00:08]} 50. Rd5 {[%emt 0:00:11]} Ke6 {[%emt 0:00:13] Against Rd6+} 51. Rg5 {[%emt 0:00:13]} Kf6 {[%emt 0:00:37] Prevents Rg6+.} 52. Rd5 {[%emt 0:00:13] Rd6+ is the strong threat.} Ke6 {[%emt 0:00:25] Inhibits Rd6+.} 53. Rg5 {[%emt 0:00:02] Hoping for Rg6+.} (53. Rd1 $5 {[%cal Rd1b1]}) 53... Kf6 {[%emt 0:00:38] Inhibits Rg6+. The position is equal.} 54. h4 {[%emt 0:00:01]} Rc4 {[%emt 0:00:10]} 55. g3 {[%emt 0:00:14]} Rc2 {[%emt 0:00:07]} 56. Kf1 {[%emt 0:00:18]} g6 {[%emt 0:02:22]} 57. Ke1 {[%emt 0:00:32]} Rg2 {[%emt 0:00:55]} 58. Kf1 {[%emt 0:00:01]} Rc2 {[%emt 0:00:09]} 59. Ke1 {[%emt 0:00:01]} Rg2 {[%emt 0:00:06]} 60. Kd1 {[%emt 0:01:14]} Kf7 {[%emt 0:01:23]} 61. Kc1 {[%emt 0:00:14]} Kf6 {[%emt 0:00:46]} 62. Kb1 {[%emt 0:00:04]} Kf7 {[%emt 0:03:32]} 63. Ka1 {[%emt 0:00:12]} Kf6 {[%emt 0:00:29]} 64. Kb1 {[%emt 0:00:00]} Kf7 {[%emt 0:00:09]} 65. Rg4 {[%emt 0:02:30]} Kf6 {[%emt 0:01:54]} 66. Rf4+ {[%emt 0:07:19]} Ke5 {[%emt 0:00:43]} 67. Rf3 {[%emt 0:00:07]} Ke4 {[%emt 0:09:02]} 68. Rf4+ {[%emt 0:00:14]} Ke5 {[%emt 0:00:06]} 69. Rf3 {[%emt 0:00:01]} Ke4 {[%emt 0:00:09]} 70. Rf6 {[%emt 0:00:49]} Rxg3 {[%emt 0:00:20]} 71. Rxa6 {[%emt 0:00:02] And now Rb6 would win.} Kd5 {[%emt 0:01:25]} 72. Rf6 {[%emt 0:01:06] Black must now prevent a6.} Rg4 {[%emt 0:01:13]} 73. a6 {[%emt 0:00:11] Strongly threatening a7.} Rxh4 {[%emt 0:00:45]} 74. Rxg6 {[%emt 0:00:03]} Kc5 {[%emt 0:00:26]} 75. a7 {[%emt 0:00:03]} Ra4 {[%emt 0:00:45]} 76. Rg2 {[%emt 0:00:04] Ra2 would kill now.} Rxa7 {[%emt 0:00:06]} 77. Ra2 {[%emt 0:00:02]} Rxa2 {[%emt 0:30:23]} 78. Kxa2 {[%emt 0:07:44] White really could win this.  Weighted Error Value: White=0.13 (very precise) /Black=0.14 (very precise)} 1/2-1/2

[Event "1st Sales Oliveira Masters 2022"]
[Site "Sales Oliveira"]
[Date "2022.06.10"]
[Round "5.5"]
[White "Coro, Lucas"]
[Black "Labussiere, Victor"]
[Result "0-1"]
[ECO "B63"]
[WhiteElo "2398"]
[BlackElo "2349"]
[Annotator "TA"]
[PlyCount "86"]
[EventDate "2022.05.30"]
[EventType "swiss"]
[EventCountry "BRA"]
[SourceTitle "playchess.com"]
[Source "ChessBase"]
[SourceQuality "1"]
[TimeControl "40/5400+30:1800+30"]

{[%evp 18,86,54,47,30,-9,67,70,59,33,56,70,58,18,43,40,55,55,60,48,60,42,48,33,37,38,34,37,47,40,47,47,60,50,62,42,39,0,0,0,90,71,97,100,89,93,149,156,207,202,218,115,122,124,12837,12838,12838,0,0,-390,-377,-606,-591,-614,-511,-654,-649,-1525,-1588,-29988,-29989]} 1. e4 {[%emt 0:00:11]} c5 {[%emt 0:02:06]} 2. Nf3 {[%emt 0:00:45]} d6 {[%emt 0:00:23]} 3. d4 {[%emt 0:02:17]} Nf6 {[%emt 0:01:39]} 4. Nc3 {[%emt 0:00:18]} cxd4 {[%emt 0:00:25]} 5. Nxd4 {[%emt 0:00:11]} Nc6 {[%emt 0:00:04]} 6. Bg5 {[%emt 0:02:44]} e6 {[%emt 0:01:16]} 7. Qd2 {[%emt 0:00:08]} Qb6 {[%emt 0:00:10]} 8. Nb3 {[%emt 0:06:46]} Be7 {[%emt 0:00:34] 8...a6 is the modern continuation.} 9. O-O-O {[%emt 0:01:14]} O-O {[%emt 0:00:39]} 10. h4 {[%emt 0:04:16]} Rd8 {[%emt 0:02:40] B63: Sicilian: Richter-Rauzer: 7...Be7 and unusual Black 7th moves.} 11. h5 {[%emt 0:07:33]} d5 {[%emt 0:05:12]} ({Black should try} 11... h6 $1 $11 12. Be3 Qc7) 12. exd5 $14 {[%emt 0:10:49]} Nxd5 {[%emt 0:02:46] White is slightly better.} 13. Bxe7 {[%emt 0:02:06]} Ndxe7 {[%emt 0:01:34]} 14. Bd3 {[%emt 0:00:48] Black must now prevent h6.} h6 $1 {[%emt 0:10:11] [#]} 15. Qe2 $146 {[%emt 0:07:13]} (15. g4 $5 {[%cal Rg4g5]}) ({Predecessor:} 15. g4 e5 16. Rhg1 Nd4 17. Nxd4 Rxd4 18. g5 Kf8 19. Nb5 Rd8 20. Qc3 Bf5 21. Bxf5 Qxb5 {½-½ (74) Gaponenko,I (2428)-Zubarev,A (2548) Rethymno 2009}) 15... Nb4 {[%emt 0:05:24]} 16. Be4 {[%emt 0:04:27]} Nbd5 {[%emt 0:02:11]} 17. Bxd5 {[%emt 0:03:50]} Nxd5 {[%emt 0:01:26]} 18. Nxd5 {[%emt 0:00:14]} exd5 {[%emt 0:00:46]} 19. Nd4 {[%emt 0:02:54]} Qf6 {[%emt 0:02:54]} 20. Kb1 {[%emt 0:01:51]} Bd7 {[%emt 0:02:19]} 21. f3 {[%emt 0:06:02]} Re8 {[%emt 0:04:17]} 22. Qd2 {[%emt 0:01:05]} Re5 {[%emt 0:03:10]} 23. g4 {[%emt 0:04:11]} Qd6 {[%emt 0:03:29]} 24. Rhg1 {[%emt 0:02:19]} Kh8 {[%emt 0:03:07]} 25. Rdf1 {[%emt 0:02:59]} Rae8 {[%emt 0:04:48]} 26. c3 {[%emt 0:04:10]} a5 {[%emt 0:09:48]} 27. f4 {[%emt 0:05:01]} Re4 {[%emt 0:08:39]} 28. g5 {[%emt 0:01:24]} a4 {[%emt 0:05:39]} (28... b5 $11) 29. a3 $36 {[%emt 0:00:34][%mdl 2048] White is on the roll.} Qb6 {[%emt 0:03:44]} 30. f5 {[%emt 0:08:47] Hoping for f6.} hxg5 {[%emt 0:00:58]} 31. Qxg5 {[%emt 0:02:03][%csl Gg1][%cal Rg5g7]} Qh6 {[%emt 0:02:23]} (31... Qf6 $142) 32. Qg3 $16 {[%emt 0:00:12]} R4e5 {[%emt 0:02:00]} (32... Bc8 $16 33. f6 Rg4 34. fxg7+ Qxg7) 33. Ka2 $18 {[%emt 0:04:58]} b6 {[%emt 0:05:59]} 34. Qh2 {[%emt 0:01:25]} ({Don't play} 34. f6 $6 gxf6 35. Qh4 f5 $16) (34. Rf3 $1 $18) 34... Bc8 $16 {[%emt 0:00:58] [#]} 35. Ne6 $1 {[%emt 0:00:44]} Qe3 {[%emt 0:03:49][%mdl 8192] [#]} (35... Rxf5 $16 36. Rxf5 (36. Nxg7 Rxf1 37. Nxe8 Qf4 $11) 36... Bxe6) 36. h6 $1 $18 {[%emt 0:00:59]} g6 {[%emt 0:00:31]} 37. fxg6 $2 {[%emt 0:00:50]} Bxe6 $11 {[%emt 0:00:28] The board is on fire.} 38. g7+ $2 {[%emt 0:00:30][%mdl 8192]} (38. gxf7 $11 {and White has nothing to worry.} d4+ 39. Ka1 Bxf7 40. Rxf7) 38... Kh7 $19 {[%emt 0:00:05] Strongly threatening ...d4+.} 39. Qc2+ $2 {[%emt 0:00:39]} (39. Ka1 Bf5 40. Qh4) 39... Qe4 {[%emt 0:00:10]} 40. Qf2 {[%emt 0:00:31]} Rg8 {[%emt 0:01:05] Threatens to win with ...d4+.} 41. Re1 {[%emt 0:30:09]} Qc4+ {[%emt 0:30:12]} 42. Ka1 {[%emt 0:00:06] [#]} d4 $1 {[%emt 0:00:13][%csl Ge6][%cal Rc4a2]} 43. b3 {[%emt 0:00:18]} (43. Qc2+ f5) 43... Qxc3+ {[%emt 0:00:05] Black used his chance.  Weighted Error Value: White=0.85/Black=0.21 (precise)} 0-1